[Event "*** Titled Tuesday Blitz"]
[Site "Chess.com"]
[Date "2021.02.09"]
[Round "8"]
[White "KingCyber19"]
[Black "bylavochka"]
[Result "1-0"]
[WhiteElo "2548"]
[BlackElo "2088"]
[TimeControl "180+1"]
[EndTime "11:29:38 PST"]
[Termination "KingCyber19 won by resignation"]

1. d4 {[%clk 0:03:00.9]} 1... Nf6 {[%clk 0:03:00.1]} 2. c4 {[%clk 0:03:01.1]}
2... g6 {[%clk 0:03:00.3]} 3. Nf3 {[%clk 0:03:01.7]} 3... Bg7 {[%clk 0:03:00.7]}
4. g3 {[%clk 0:03:02.4]} 4... O-O {[%clk 0:03:00.9]} 5. Bg2 {[%clk 0:03:03]}
5... d6 {[%clk 0:03:00.1]} 6. O-O {[%clk 0:03:03.6]} 6... c6 {[%clk 0:03:00]} 7.
Nc3 {[%clk 0:03:04.1]} 7... Nbd7 {[%clk 0:03:00.4]} 8. e4 {[%clk 0:03:04.8]}
8... e5 {[%clk 0:03:00.9]} 9. Be3 {[%clk 0:03:05.1]} 9... Re8 {[%clk 0:02:58.7]}
10. h3 {[%clk 0:03:04.8]} 10... Qe7 {[%clk 0:02:59.2]} 11. Qc2 {[%clk
0:02:57.1]} 11... Nf8 {[%clk 0:02:48.3]} 12. Rfe1 {[%clk 0:02:45]} 12... exd4
{[%clk 0:02:43.7]} 13. Nxd4 {[%clk 0:02:43.4]} 13... Ne6 {[%clk 0:02:43]} 14. f4
{[%clk 0:02:27.2]} 14... Nd7 {[%clk 0:02:34.1]} 15. Rad1 {[%clk 0:02:20]} 15...
a5 {[%clk 0:02:24.2]} 16. b3 {[%clk 0:02:10.4]} 16... Ndc5 {[%clk 0:02:23.2]}
17. Nxe6 {[%clk 0:02:04.1]} 17... Nxe6 {[%clk 0:02:21.9]} 18. Ne2 {[%clk
0:02:04.5]} 18... Nc7 {[%clk 0:02:01.6]} 19. Bd4 {[%clk 0:01:59.7]} 19... Ne6
{[%clk 0:01:46.4]} 20. Bxg7 {[%clk 0:01:56.9]} 20... Nxg7 {[%clk 0:01:47.3]} 21.
Nd4 {[%clk 0:01:56.2]} 21... Ne6 {[%clk 0:01:32.7]} 22. Kh2 {[%clk 0:01:47.7]}
22... Bd7 {[%clk 0:01:19.8]} 23. Qd2 {[%clk 0:01:38.4]} 23... Rad8 {[%clk
0:01:17.4]} 24. Qxa5 {[%clk 0:01:29.7]} 24... Ra8 {[%clk 0:00:43]} 25. Qd2
{[%clk 0:01:29.4]} 25... Nxd4 {[%clk 0:00:42.2]} 26. Qxd4 {[%clk 0:01:30.3]}
26... Rxa2 {[%clk 0:00:39.5]} 27. Qxd6 {[%clk 0:01:30.5]} 27... Qxd6 {[%clk
0:00:18.4]} 28. Rxd6 {[%clk 0:01:31.4]} 28... Re7 {[%clk 0:00:15.8]} 29. Red1
{[%clk 0:01:23.2]} 29... Rxe4 {[%clk 0:00:15.9]} 30. Rxd7 {[%clk 0:01:17.7]}
30... Ree2 {[%clk 0:00:16]} 31. Rg1 {[%clk 0:01:18.3]} 31... b5 {[%clk
0:00:14.7]} 32. cxb5 {[%clk 0:01:17]} 32... cxb5 {[%clk 0:00:15.6]} 33. Rb7
{[%clk 0:01:17.6]} 33... b4 {[%clk 0:00:15.2]} 34. Rxb4 {[%clk 0:01:17.4]} 34...
h5 {[%clk 0:00:14.9]} 35. h4 {[%clk 0:01:16.5]} 35... Kg7 {[%clk 0:00:14.8]} 36.
Rb7 {[%clk 0:01:16.1]} 36... Kg8 {[%clk 0:00:14.3]} 37. b4 {[%clk 0:01:14.7]}
37... Rab2 {[%clk 0:00:14.9]} 38. b5 {[%clk 0:01:15.2]} 38... Kg7 {[%clk
0:00:15.1]} 39. b6 {[%clk 0:01:15.7]} 39... Re6 {[%clk 0:00:12.1]} 40. Kh3
{[%clk 0:01:11.8]} 40... Rexb6 {[%clk 0:00:08.1]} 41. Rxb6 {[%clk 0:01:12.7]}
41... Rxb6 {[%clk 0:00:08.2]} 42. Rc1 {[%clk 0:01:13.6]} 42... Rb3 {[%clk
0:00:07.6]} 43. Rc7 {[%clk 0:01:13.7]} 43... Rb6 {[%clk 0:00:04.4]} 44. Bd5
{[%clk 0:01:13.6]} 44... Rf6 {[%clk 0:00:05.3]} 45. Kg2 {[%clk 0:01:08.1]} 45...
Rf5 {[%clk 0:00:05.5]} 46. Bc4 {[%clk 0:01:04.9]} 46... Rf6 {[%clk 0:00:05.5]}
47. Kf3 {[%clk 0:01:05.1]} 47... Rf5 {[%clk 0:00:05.9]} 48. Ke4 {[%clk
0:01:05.4]} 48... Rf6 {[%clk 0:00:06.2]} 49. Rxf7+ {[%clk 0:00:51.9]} 49... Rxf7
{[%clk 0:00:06.2]} 50. Bxf7 {[%clk 0:00:52.8]} 50... Kxf7 {[%clk 0:00:06.9]} 51.
Ke5 {[%clk 0:00:53.3]} 51... Ke7 {[%clk 0:00:06.4]} 52. f5 {[%clk 0:00:53.9]}
52... Kf7 {[%clk 0:00:05.9]} 53. f6 {[%clk 0:00:52.4]} 53... g5 {[%clk
0:00:04.7]} 54. hxg5 {[%clk 0:00:52.4]} 54... Kg6 {[%clk 0:00:05.6]} 55. Ke6
{[%clk 0:00:52.3]} 55... Kxg5 {[%clk 0:00:06.5]} 56. f7 {[%clk 0:00:52.9]} 56...
Kg4 {[%clk 0:00:07.4]} 57. f8=Q {[%clk 0:00:53.4]} 57... Kxg3 {[%clk 0:00:08.3]}
58. Qf1 {[%clk 0:00:53.1]} 58... Kh2 {[%clk 0:00:07.7]} 59. Kf5 {[%clk
0:00:51.8]} 59... h4 {[%clk 0:00:07.6]} 60. Kg4 {[%clk 0:00:52]} 60... h3 {[%clk
0:00:08]} 61. Qxh3+ {[%clk 0:00:52.3]} 61... Kg1 {[%clk 0:00:08.6]} 62. Qf3
{[%clk 0:00:51.5]} 62... Kh2 {[%clk 0:00:08.7]} 63. Qe2+ {[%clk 0:00:51.9]}
63... Kg1 {[%clk 0:00:08.7]} 64. Kg3 {[%clk 0:00:52.8]} 1-0

[Event "*** Titled Tuesday Blitz"]
[Site "Chess.com"]
[Date "2021.02.09"]
[Round "8"]
[White "klimkoj"]
[Black "Cambek64"]
[Result "1-0"]
[WhiteElo "2550"]
[BlackElo "2346"]
[TimeControl "180+1"]
[EndTime "11:29:42 PST"]
[Termination "klimkoj won on time"]

1. d4 {[%clk 0:03:00.9]} 1... Nf6 {[%clk 0:02:55.8]} 2. Nf3 {[%clk 0:02:48.4]}
2... c5 {[%clk 0:02:43.3]} 3. d5 {[%clk 0:02:44.1]} 3... g6 {[%clk 0:02:41.3]}
4. c4 {[%clk 0:02:42]} 4... b5 {[%clk 0:02:37.8]} 5. Qc2 {[%clk 0:02:38.1]} 5...
Bg7 {[%clk 0:02:35.1]} 6. e4 {[%clk 0:02:36.8]} 6... d6 {[%clk 0:02:29.1]} 7.
cxb5 {[%clk 0:02:35.8]} 7... O-O {[%clk 0:02:26.5]} 8. Nc3 {[%clk 0:02:35.2]}
8... a6 {[%clk 0:02:26.7]} 9. a4 {[%clk 0:02:26.9]} 9... axb5 {[%clk 0:02:24.4]}
10. Bxb5 {[%clk 0:02:25.6]} 10... Ba6 {[%clk 0:02:23.4]} 11. O-O {[%clk
0:02:22.2]} 11... Ne8 {[%clk 0:02:22.9]} 12. Bg5 {[%clk 0:02:15.8]} 12... Nc7
{[%clk 0:02:22.6]} 13. Qd3 {[%clk 0:02:00.7]} 13... Nd7 {[%clk 0:02:21.5]} 14.
Nd2 {[%clk 0:01:56.6]} 14... h6 {[%clk 0:02:16.2]} 15. Be3 {[%clk 0:01:54.5]}
15... Qb8 {[%clk 0:02:03.8]} 16. f3 {[%clk 0:01:38.9]} 16... Ne5 {[%clk
0:01:52.9]} 17. Qe2 {[%clk 0:01:37]} 17... Bxb5 {[%clk 0:01:43.6]} 18. axb5
{[%clk 0:01:35.7]} 18... Qb7 {[%clk 0:01:40.7]} 19. Nb3 {[%clk 0:01:19.9]} 19...
h5 {[%clk 0:01:22.1]} 20. Na5 {[%clk 0:01:15.9]} 20... Qb6 {[%clk 0:01:20]} 21.
Nc6 {[%clk 0:01:14.5]} 21... Nxc6 {[%clk 0:01:17.1]} 22. bxc6 {[%clk 0:01:13.3]}
22... Rab8 {[%clk 0:01:04.4]} 23. Ra2 {[%clk 0:01:02.8]} 23... Qb3 {[%clk
0:01:03.3]} 24. Rfa1 {[%clk 0:00:55]} 24... e6 {[%clk 0:01:00.6]} 25. dxe6
{[%clk 0:00:31.7]} 25... Nxe6 {[%clk 0:00:54.6]} 26. Nd5 {[%clk 0:00:30.4]}
26... Bxb2 {[%clk 0:00:41.2]} 27. c7 {[%clk 0:00:26.5]} 27... Nxc7 {[%clk
0:00:32.4]} 28. Nxc7 {[%clk 0:00:21.4]} 28... Bxa1 {[%clk 0:00:31.3]} 29. Rxa1
{[%clk 0:00:20.1]} 29... c4 {[%clk 0:00:16.6]} 30. Nd5 {[%clk 0:00:19.5]} 30...
Qb2 {[%clk 0:00:09.3]} 31. Qxb2 {[%clk 0:00:16.6]} 31... Rxb2 {[%clk 0:00:09.5]}
32. Bd4 {[%clk 0:00:16.7]} 32... Rd2 {[%clk 0:00:08]} 33. Bc3 {[%clk 0:00:16.4]}
33... Rd3 {[%clk 0:00:08]} 34. Ra7 {[%clk 0:00:15.2]} 34... Rb8 {[%clk
0:00:07.1]} 35. Kf2 {[%clk 0:00:14.3]} 35... f5 {[%clk 0:00:03.3]} 36. Nf6+
{[%clk 0:00:12.6]} 36... Kf8 {[%clk 0:00:02.7]} 37. Nd7+ {[%clk 0:00:12.5]}
37... Ke8 {[%clk 0:00:02]} 38. Nxb8 {[%clk 0:00:11.9]} 38... Rxc3 {[%clk
0:00:02.3]} 39. Nc6 {[%clk 0:00:12.4]} 39... Rd3 {[%clk 0:00:01.3]} 40. exf5
{[%clk 0:00:10.9]} 1-0

[Event "*** Titled Tuesday Blitz"]
[Site "Chess.com"]
[Date "2021.02.09"]
[Round "8"]
[White "ShahMatKanal"]
[Black "PotapovaM"]
[Result "1-0"]
[WhiteElo "2486"]
[BlackElo "2621"]
[TimeControl "180+1"]
[EndTime "11:29:43 PST"]
[Termination "ShahMatKanal won by checkmate"]

1. c4 {[%clk 0:03:00.9]} 1... Nf6 {[%clk 0:03:00.1]} 2. Nc3 {[%clk 0:02:58.8]}
2... e6 {[%clk 0:03:00.7]} 3. e4 {[%clk 0:02:50.2]} 3... d5 {[%clk 0:03:01.1]}
4. cxd5 {[%clk 0:02:50.7]} 4... exd5 {[%clk 0:03:01.7]} 5. e5 {[%clk 0:02:51.2]}
5... Ne4 {[%clk 0:03:02.4]} 6. Bd3 {[%clk 0:02:44.5]} 6... Nxc3 {[%clk
0:02:56.9]} 7. dxc3 {[%clk 0:02:41.1]} 7... Be7 {[%clk 0:02:55.5]} 8. Nf3 {[%clk
0:02:38.7]} 8... Bg4 {[%clk 0:02:51.2]} 9. h3 {[%clk 0:02:38.1]} 9... Bh5 {[%clk
0:02:50.9]} 10. O-O {[%clk 0:02:30.3]} 10... Nc6 {[%clk 0:02:40.5]} 11. Re1
{[%clk 0:02:23.1]} 11... O-O {[%clk 0:02:33.4]} 12. Bf4 {[%clk 0:02:14.6]} 12...
d4 {[%clk 0:02:20.1]} 13. c4 {[%clk 0:01:56]} 13... Bg6 {[%clk 0:01:49.2]} 14.
a3 {[%clk 0:01:51]} 14... a5 {[%clk 0:01:48.7]} 15. b3 {[%clk 0:01:45.9]} 15...
Qd7 {[%clk 0:01:48.2]} 16. Qc2 {[%clk 0:01:33.5]} 16... Bc5 {[%clk 0:01:45.6]}
17. Bg3 {[%clk 0:01:26.1]} 17... Nd8 {[%clk 0:01:27.4]} 18. Ng5 {[%clk
0:01:15.2]} 18... Bxd3 {[%clk 0:01:09.9]} 19. Qxd3 {[%clk 0:01:14.8]} 19... g6
{[%clk 0:01:10.6]} 20. Ne4 {[%clk 0:00:50.9]} 20... Be7 {[%clk 0:01:10.5]} 21.
b4 {[%clk 0:00:51.3]} 21... Ne6 {[%clk 0:01:08.3]} 22. c5 {[%clk 0:00:44.7]}
22... Kg7 {[%clk 0:00:58.1]} 23. h4 {[%clk 0:00:42]} 23... h5 {[%clk 0:00:53]}
24. Rac1 {[%clk 0:00:35.7]} 24... Qd8 {[%clk 0:00:53.1]} 25. Nf6 {[%clk
0:00:31.5]} 25... Bxf6 {[%clk 0:00:47]} 26. exf6+ {[%clk 0:00:31.7]} 26... Kg8
{[%clk 0:00:47.6]} 27. b5 {[%clk 0:00:30.4]} 27... Qxf6 {[%clk 0:00:45.2]} 28.
Re5 {[%clk 0:00:21.9]} 28... c6 {[%clk 0:00:40.6]} 29. bxc6 {[%clk 0:00:19.2]}
29... bxc6 {[%clk 0:00:41.5]} 30. Rce1 {[%clk 0:00:19.1]} 30... Rad8 {[%clk
0:00:37.6]} 31. Qe4 {[%clk 0:00:17.1]} 31... Ng7 {[%clk 0:00:33.8]} 32. Rd1
{[%clk 0:00:14.3]} 32... Nf5 {[%clk 0:00:33.3]} 33. Bf4 {[%clk 0:00:12.7]} 33...
Qxh4 {[%clk 0:00:31.4]} 34. g3 {[%clk 0:00:10.4]} 34... Qf6 {[%clk 0:00:31.4]}
35. Kg2 {[%clk 0:00:08.2]} 35... Rd7 {[%clk 0:00:23.8]} 36. Rd3 {[%clk
0:00:08.1]} 36... Rfd8 {[%clk 0:00:20.1]} 37. Re8+ {[%clk 0:00:07.8]} 37... Kh7
{[%clk 0:00:18.4]} 38. f3 {[%clk 0:00:05.8]} 38... Re7 {[%clk 0:00:14.7]} 39.
Rxe7 {[%clk 0:00:05.6]} 39... Nxe7 {[%clk 0:00:12.9]} 40. g4 {[%clk 0:00:05.8]}
40... Nd5 {[%clk 0:00:11.8]} 41. Bd2 {[%clk 0:00:05.5]} 41... hxg4 {[%clk
0:00:09.7]} 42. fxg4 {[%clk 0:00:06.4]} 42... Rd7 {[%clk 0:00:09.3]} 43. Rh3+
{[%clk 0:00:05.6]} 43... Kg8 {[%clk 0:00:08.7]} 44. Qe8+ {[%clk 0:00:05.3]}
44... Kg7 {[%clk 0:00:07.2]} 45. Qh8# {[%clk 0:00:06.2]} 1-0

[Event "*** Titled Tuesday Blitz"]
[Site "Chess.com"]
[Date "2021.02.09"]
[Round "8"]
[White "seorobert1971"]
[Black "sorrm8thatscheckm8"]
[Result "0-1"]
[WhiteElo "2706"]
[BlackElo "2600"]
[TimeControl "180+1"]
[EndTime "11:29:44 PST"]
[Termination "sorrm8thatscheckm8 won by resignation"]

1. e4 {[%clk 0:03:00.9]} 1... c5 {[%clk 0:02:58.8]} 2. Nc3 {[%clk 0:03:00.7]}
2... Nc6 {[%clk 0:02:57.1]} 3. g3 {[%clk 0:03:00.7]} 3... g6 {[%clk 0:02:54.5]}
4. Bg2 {[%clk 0:03:01.1]} 4... Bg7 {[%clk 0:02:52.5]} 5. Nge2 {[%clk 0:03:01.6]}
5... e6 {[%clk 0:02:49.2]} 6. d3 {[%clk 0:03:02]} 6... Nf6 {[%clk 0:02:47.5]} 7.
Be3 {[%clk 0:03:01.2]} 7... Qe7 {[%clk 0:02:42.4]} 8. h3 {[%clk 0:02:50.2]} 8...
d6 {[%clk 0:02:37.4]} 9. Qd2 {[%clk 0:02:48.8]} 9... Bd7 {[%clk 0:02:34.6]} 10.
f4 {[%clk 0:02:47.4]} 10... O-O-O {[%clk 0:02:21.1]} 11. O-O-O {[%clk
0:02:39.1]} 11... Kb8 {[%clk 0:02:19.5]} 12. d4 {[%clk 0:02:35.9]} 12... cxd4
{[%clk 0:02:16.7]} 13. Nxd4 {[%clk 0:02:35.4]} 13... Nxd4 {[%clk 0:02:16.3]} 14.
Qxd4 {[%clk 0:02:35.1]} 14... b6 {[%clk 0:02:05.3]} 15. Qxd6+ {[%clk 0:02:26.5]}
15... Qxd6 {[%clk 0:02:04.4]} 16. Rxd6 {[%clk 0:02:26.1]} 16... Bc8 {[%clk
0:02:02.9]} 17. Rhd1 {[%clk 0:02:24.1]} 17... Rxd6 {[%clk 0:01:59.8]} 18. Rxd6
{[%clk 0:02:23.5]} 18... Nh5 {[%clk 0:02:00.1]} 19. g4 {[%clk 0:02:19.7]} 19...
Nf6 {[%clk 0:01:50.8]} 20. e5 {[%clk 0:02:16.7]} 20... Ne8 {[%clk 0:01:45.4]}
21. Rd1 {[%clk 0:02:14.4]} 21... Nc7 {[%clk 0:01:43.8]} 22. a4 {[%clk 0:02:10]}
22... g5 {[%clk 0:01:36.1]} 23. Ne4 {[%clk 0:01:46.9]} 23... Nd5 {[%clk
0:01:30]} 24. Rxd5 {[%clk 0:01:45.6]} 24... exd5 {[%clk 0:01:29.3]} 25. Nxg5
{[%clk 0:01:45.5]} 25... h5 {[%clk 0:01:20.4]} 26. Nxf7 {[%clk 0:01:41.9]} 26...
Rf8 {[%clk 0:01:16.2]} 27. Nd6 {[%clk 0:01:38.7]} 27... Be6 {[%clk 0:01:10.9]}
28. g5 {[%clk 0:01:28.5]} 28... d4 {[%clk 0:00:58]} 29. Bd2 {[%clk 0:01:28.2]}
29... Bxe5 {[%clk 0:00:38.1]} 30. fxe5 {[%clk 0:01:04]} 30... Rf2 {[%clk
0:00:38.6]} 31. h4 {[%clk 0:01:04]} 31... Rxg2 {[%clk 0:00:38.2]} 32. b4 {[%clk
0:01:03.8]} 32... Rh2 {[%clk 0:00:35]} 33. g6 {[%clk 0:01:00.7]} 33... Rh1+
{[%clk 0:00:29.7]} 34. Kb2 {[%clk 0:01:00.1]} 34... Rxh4 {[%clk 0:00:30.1]} 35.
Nf7 {[%clk 0:00:56]} 35... Rg4 {[%clk 0:00:19.6]} 36. Ng5 {[%clk 0:00:55]} 36...
Bg8 {[%clk 0:00:19.4]} 37. e6 {[%clk 0:00:54.7]} 37... Kc8 {[%clk 0:00:16.5]}
38. g7 {[%clk 0:00:23.9]} 38... Kd8 {[%clk 0:00:13]} 39. b5 {[%clk 0:00:20.2]}
39... d3 {[%clk 0:00:07.8]} 40. cxd3 {[%clk 0:00:14.9]} 40... Ke7 {[%clk
0:00:07.8]} 41. Bb4+ {[%clk 0:00:14]} 41... Rxb4+ {[%clk 0:00:07.3]} 0-1

[Event "*** Titled Tuesday Blitz"]
[Site "Chess.com"]
[Date "2021.02.09"]
[Round "8"]
[White "PSvidler"]
[Black "12teen"]
[Result "1-0"]
[WhiteElo "2907"]
[BlackElo "2856"]
[TimeControl "180+1"]
[EndTime "11:29:46 PST"]
[Termination "PSvidler won by resignation"]

1. e4 {[%clk 0:01:59.6]} 1... e6 {[%clk 0:02:58.3]} 2. d4 {[%clk 0:01:59.4]}
2... b6 {[%clk 0:02:58.8]} 3. Nf3 {[%clk 0:01:58.1]} 3... Bb7 {[%clk 0:02:59.3]}
4. Bd3 {[%clk 0:01:58.4]} 4... Nf6 {[%clk 0:02:58.9]} 5. Qe2 {[%clk 0:01:58.3]}
5... d5 {[%clk 0:02:59.3]} 6. e5 {[%clk 0:01:58.3]} 6... Nfd7 {[%clk 0:02:59.9]}
7. c3 {[%clk 0:01:57.6]} 7... Be7 {[%clk 0:03:00.5]} 8. O-O {[%clk 0:01:57.3]}
8... c5 {[%clk 0:03:01.4]} 9. a4 {[%clk 0:01:57.2]} 9... Nc6 {[%clk 0:03:02]}
10. Nbd2 {[%clk 0:01:49.4]} 10... g5 {[%clk 0:02:49.9]} 11. Bb5 {[%clk
0:01:34.6]} 11... h5 {[%clk 0:02:46.2]} 12. Nb3 {[%clk 0:01:22.2]} 12... g4
{[%clk 0:02:45.2]} 13. Ne1 {[%clk 0:01:21.6]} 13... Qc7 {[%clk 0:02:42.2]} 14.
Nc2 {[%clk 0:01:15.9]} 14... a6 {[%clk 0:02:35.1]} 15. Bxc6 {[%clk 0:01:15.8]}
15... Bxc6 {[%clk 0:02:35.9]} 16. Bf4 {[%clk 0:01:15.5]} 16... b5 {[%clk
0:02:23.6]} 17. dxc5 {[%clk 0:01:11.2]} 17... bxa4 {[%clk 0:02:16.1]} 18. Nbd4
{[%clk 0:01:11]} 18... Nxc5 {[%clk 0:02:14.6]} 19. f3 {[%clk 0:01:11.2]} 19...
Nb3 {[%clk 0:02:09.1]} 20. Rad1 {[%clk 0:01:09.1]} 20... Bc5 {[%clk 0:02:03.5]}
21. Qe3 {[%clk 0:01:00.2]} 21... Bb5 {[%clk 0:01:56.2]} 22. Rf2 {[%clk 0:01:00]}
22... O-O-O {[%clk 0:01:49.8]} 23. fxg4 {[%clk 0:00:59.9]} 23... hxg4 {[%clk
0:01:49.9]} 24. Bg3 {[%clk 0:01:00.4]} 24... Na5 {[%clk 0:01:42.8]} 25. Qf4
{[%clk 0:00:58.1]} 25... Rd7 {[%clk 0:01:41.6]} 26. Ne3 {[%clk 0:00:57.2]} 26...
Nc4 {[%clk 0:01:39.7]} 27. Nxc4 {[%clk 0:00:56.4]} 27... dxc4 {[%clk 0:01:40.1]}
28. Qxg4 {[%clk 0:00:56]} 28... Rhd8 {[%clk 0:01:39]} 29. h3 {[%clk 0:00:54.8]}
29... Qb6 {[%clk 0:01:37]} 30. Kh2 {[%clk 0:00:51.5]} 30... Bxd4 {[%clk
0:01:34.9]} 31. Rxd4 {[%clk 0:00:50.7]} 31... Rxd4 {[%clk 0:01:34]} 32. cxd4
{[%clk 0:00:50.9]} 32... Qxd4 {[%clk 0:01:33.3]} 33. Rf4 {[%clk 0:00:49.7]}
33... Qd7 {[%clk 0:00:46]} 34. Qf3 {[%clk 0:00:49.4]} 34... Qb7 {[%clk
0:00:42.7]} 35. Qxb7+ {[%clk 0:00:42.9]} 35... Kxb7 {[%clk 0:00:43.6]} 36. Rxf7+
{[%clk 0:00:43]} 36... Kc6 {[%clk 0:00:44.3]} 37. Be1 {[%clk 0:00:43]} 37... Rd3
{[%clk 0:00:37.5]} 38. Rf3 {[%clk 0:00:41.9]} 38... Kd5 {[%clk 0:00:30.4]} 39.
Bc3 {[%clk 0:00:41.8]} 39... Ke4 {[%clk 0:00:24.8]} 40. Kg3 {[%clk 0:00:41.9]}
40... Be8 {[%clk 0:00:20.7]} 41. Kf2 {[%clk 0:00:37.7]} 41... Bh5 {[%clk
0:00:19.7]} 42. Rxd3 {[%clk 0:00:34.2]} 42... Kxd3 {[%clk 0:00:19.7]} 43. Bb4
{[%clk 0:00:32.1]} 43... Kc2 {[%clk 0:00:19.4]} 44. g4 {[%clk 0:00:29.3]} 44...
Bg6 {[%clk 0:00:19.2]} 45. Ke3 {[%clk 0:00:27.3]} 45... Kxb2 {[%clk 0:00:19]}
46. Kd4 {[%clk 0:00:27.4]} 46... Kb3 {[%clk 0:00:18.7]} 47. Bc3 {[%clk
0:00:27.4]} 47... a3 {[%clk 0:00:19]} 48. h4 {[%clk 0:00:27.5]} 48... Ka2 {[%clk
0:00:16.6]} 49. Kxc4 {[%clk 0:00:27]} 49... Kb1 {[%clk 0:00:16]} 50. h5 {[%clk
0:00:27]} 50... Bf7 {[%clk 0:00:16.3]} 51. Kc5 {[%clk 0:00:24.7]} 51... Kc2
{[%clk 0:00:16.1]} 52. Ba1 {[%clk 0:00:24]} 52... Kb1 {[%clk 0:00:16.2]} 53. Bd4
{[%clk 0:00:24]} 53... a2 {[%clk 0:00:14.8]} 54. Kd6 {[%clk 0:00:24.1]} 54... a5
{[%clk 0:00:10.8]} 55. Ke7 {[%clk 0:00:24]} 55... Bg8 {[%clk 0:00:11.3]} 56. g5
{[%clk 0:00:24.3]} 56... a4 {[%clk 0:00:11.5]} 57. g6 {[%clk 0:00:24.7]} 57...
a3 {[%clk 0:00:11.1]} 58. h6 {[%clk 0:00:24.6]} 58... a1=Q {[%clk 0:00:11.5]}
59. Bxa1 {[%clk 0:00:24.5]} 59... Kxa1 {[%clk 0:00:12.4]} 60. h7 {[%clk
0:00:24.9]} 60... Bxh7 {[%clk 0:00:10.3]} 61. gxh7 {[%clk 0:00:25.2]} 61... a2
{[%clk 0:00:10.9]} 62. h8=Q {[%clk 0:00:25.1]} 1-0

[Event "*** Titled Tuesday Blitz"]
[Site "Chess.com"]
[Date "2021.02.09"]
[Round "8"]
[White "BahadirOzen"]
[Black "Zmeeed63"]
[Result "0-1"]
[WhiteElo "2708"]
[BlackElo "2464"]
[TimeControl "180+1"]
[EndTime "11:29:46 PST"]
[Termination "Zmeeed63 won by resignation"]

1. g3 {[%clk 0:03:00.9]} 1... Nf6 {[%clk 0:02:59.4]} 2. Bg2 {[%clk 0:03:01.4]}
2... e6 {[%clk 0:02:59.8]} 3. d3 {[%clk 0:03:00.8]} 3... Be7 {[%clk 0:03:00.1]}
4. Nd2 {[%clk 0:02:59.9]} 4... O-O {[%clk 0:03:00.6]} 5. e4 {[%clk 0:03:00.3]}
5... d5 {[%clk 0:03:00.4]} 6. Nh3 {[%clk 0:03:00.6]} 6... c5 {[%clk 0:02:59.6]}
7. O-O {[%clk 0:03:01.1]} 7... Nc6 {[%clk 0:02:59.6]} 8. f4 {[%clk 0:03:01.6]}
8... b5 {[%clk 0:02:53.5]} 9. Nf2 {[%clk 0:03:01.2]} 9... c4 {[%clk 0:02:52.1]}
10. e5 {[%clk 0:02:58.1]} 10... Ne8 {[%clk 0:02:48.5]} 11. dxc4 {[%clk
0:02:56.3]} 11... bxc4 {[%clk 0:02:49.4]} 12. Nxc4 {[%clk 0:02:56.2]} 12... Ba6
{[%clk 0:02:42.6]} 13. Nd2 {[%clk 0:02:51.4]} 13... Bxf1 {[%clk 0:02:39.8]} 14.
Qxf1 {[%clk 0:02:48.5]} 14... Qb6 {[%clk 0:02:39.6]} 15. Kh1 {[%clk 0:02:46]}
15... Nc7 {[%clk 0:02:37.8]} 16. Nf3 {[%clk 0:02:45.2]} 16... Qa6 {[%clk
0:02:31.2]} 17. Qd1 {[%clk 0:02:43.4]} 17... Rab8 {[%clk 0:02:30.3]} 18. b3
{[%clk 0:02:38.9]} 18... Rfd8 {[%clk 0:02:18.5]} 19. Nd3 {[%clk 0:02:25.9]}
19... Nb4 {[%clk 0:02:15.1]} 20. Nde1 {[%clk 0:02:18.1]} 20... Nb5 {[%clk
0:01:59.7]} 21. Bb2 {[%clk 0:02:13.7]} 21... Rbc8 {[%clk 0:01:55.5]} 22. Bf1
{[%clk 0:02:10.7]} 22... Qb7 {[%clk 0:01:45.7]} 23. a3 {[%clk 0:02:05.2]} 23...
Nc6 {[%clk 0:01:41.1]} 24. Bd3 {[%clk 0:01:58.3]} 24... g6 {[%clk 0:01:33.5]}
25. h4 {[%clk 0:01:57.6]} 25... h5 {[%clk 0:01:32.3]} 26. Kh2 {[%clk 0:01:57.6]}
26... Nc7 {[%clk 0:01:25.7]} 27. Ng2 {[%clk 0:01:39]} 27... a5 {[%clk
0:01:21.5]} 28. Ng5 {[%clk 0:01:33.5]} 28... Bxg5 {[%clk 0:01:14]} 29. hxg5
{[%clk 0:01:33.9]} 29... a4 {[%clk 0:01:11]} 30. b4 {[%clk 0:01:33.6]} 30... Na5
{[%clk 0:01:09.7]} 31. g4 {[%clk 0:01:26.1]} 31... Nc4 {[%clk 0:01:06.5]} 32.
Bc1 {[%clk 0:01:17.1]} 32... hxg4 {[%clk 0:00:57.2]} 33. Qxg4 {[%clk 0:01:17]}
33... Nb5 {[%clk 0:00:57.2]} 34. Qh3 {[%clk 0:01:00.5]} 34... Qe7 {[%clk
0:00:55.3]} 35. Nh4 {[%clk 0:00:55.4]} 35... Qf8 {[%clk 0:00:52.8]} 36. Be3
{[%clk 0:00:53.8]} 36... Nxe3 {[%clk 0:00:29.4]} 37. Qxe3 {[%clk 0:00:54.7]}
37... d4 {[%clk 0:00:30.3]} 38. Qh3 {[%clk 0:00:50.9]} 38... Nc3 {[%clk
0:00:29.7]} 39. Rh1 {[%clk 0:00:49.6]} 39... Qg7 {[%clk 0:00:28.7]} 40. Kg3
{[%clk 0:00:48.8]} 40... Nd5 {[%clk 0:00:26.8]} 41. Nf3 {[%clk 0:00:37.4]} 41...
Ne3 {[%clk 0:00:22.8]} 42. Nh2 {[%clk 0:00:37.8]} 42... Nf5+ {[%clk 0:00:21.9]}
43. Kf3 {[%clk 0:00:36.1]} 43... Kf8 {[%clk 0:00:19.5]} 44. Ng4 {[%clk
0:00:34.3]} 44... Ke7 {[%clk 0:00:20]} 45. Kf2 {[%clk 0:00:29.2]} 45... Rh8
{[%clk 0:00:19.6]} 46. Qf3 {[%clk 0:00:29.7]} 46... Rxh1 {[%clk 0:00:18.9]} 47.
Qxh1 {[%clk 0:00:29.6]} 47... Qh8 {[%clk 0:00:19.3]} 48. Qb7+ {[%clk 0:00:30]}
48... Kd8 {[%clk 0:00:17.4]} 49. Qb6+ {[%clk 0:00:28.5]} 49... Ke8 {[%clk
0:00:16.5]} 50. Nh6 {[%clk 0:00:17.6]} 50... Nxh6 {[%clk 0:00:14.7]} 51. Bb5+
{[%clk 0:00:17.9]} 51... Kf8 {[%clk 0:00:14.3]} 0-1